Workbook

Sheet WA Electric - Sched 91
D4: RESIDENTIAL | E4: GENERAL SVC. | F4: LG. GEN. SVC. | G4: EX LG GEN SVC | H4: EX LG GEN SVC | I4: PUMPING | J4: ST & AREA LTG
A5: Source | C5: TOTAL | D5: SCHEDULE 1,7,8 | E5: SCH. 11,12,13,17,18 | F5: SCH. 21,22,23 | G5: SCHEDULE 25 | H5: SCHEDULE 25I | I5: SCH. 30, 31, 32 | J5: SCH. 41-48
A7: Forecast | B7: Total Annual Forecasted kWh's | C7: =SUM(D7:J7) -> 5835774812 | D7: =SUM('Billing Determinants'!$G20:$R20) -> 2655150579 | E7: =SUM('Billing Determinants'!G21:R21) -> 684568236.3 | F7: =SUM('Billing Determinants'!G22:R22) -> 1277870455 | G7: =SUM('Billing Determinants'!G23:R23) -> 620814991 | H7: =SUM('Billing Determinants'!G24:R24) -> 433183452 | I7: =SUM('Billing Determinants'!G25:R25) -> 148427613.1 | J7: =SUM('Billing Determinants'!G26:R26) -> 15759484.61
B9: Present DSM Rates | D9: 0.002551992116 | E9: 0.003206845127 | F9: 0.002734844645 | G9: 0.001816750562 | H9: 0.001816750562 | I9: 0.002361382541 | J9: 0.01118248874
B11: Present Annual DSM Revenue | C11: =SUM(D11:J11) -> 14907581.73 | D11: =D7*D9 -> 6775923.344 | E11: =E7*E9 -> 2195304.313 | F11: 3494777.172 | G11: 1127865.984 | H11: =H7*H9 -> 786986.2799 | I11: 350494.3743 | J11: =J7*J9 -> 176230.2592
A13: UE-220053 | B13: Base Revenue | C13: =SUM(D13:J13) -> 600708000 | D13: =ROUND('Base Revenue'!D14*1000,-3) -> 285802000 | E13: =ROUND('Base Revenue'!D16*1000,-3) -> 86753000 | F13: =ROUND('Base Revenue'!D18*1000,-3) -> 139487000 | G13: =ROUND('Base Revenue'!D20*1000,-3) -> 42461000 | H13: =ROUND('Base Revenue'!D22*1000,-3) -> 22430000 | I13: =ROUND('Base Revenue'!D24*1000,-3) -> 16438000 | J13: =ROUND('Base Revenue'!D26*1000,-3) -> 7337000
B15: Percentage of Current Base Volumetric Revenue | C15: =SUM(D15:J15) -> 1 | D15: =D13/$C$13 -> 0.4757752519 | E15: =E13/$C$13 -> 0.1444179202 | F15: =F13/$C$13 -> 0.2322043322 | G15: =G13/$C$13 -> 0.07068492512 | H15: =H13/$C$13 -> 0.03733927299 | I15: 0.0273643767 | J15: =J13/$C$13 -> 0.01221392091
B17: Revenue Requirement | C17: 27768930.43
B19: Revenue Spread Based on Current Allocation | C19: =SUM(D19:J19) -> 27768930.43 | D19: =$C$17*D15 -> 13211769.87 | E19: =$C$17*E15 -> 4010331.178 | F19: =$C$17*F15 -> 6448065.947 | G19: =$C$17*G15 -> 1962844.768 | H19: =$C$17*H15 -> 1036871.674 | I19: 759879.4729 | J19: =$C$17*J15 -> 339167.5199
B21: DSM Revenue Increase <Decrease> | C21: =C19-C11 -> 12861348.7 | D21: =D19-D11 -> 6435846.525 | E21: =E19-E11 -> 1815026.865 | F21: =F19-F11 -> 2953288.774 | G21: =G19-G11 -> 834978.7841 | H21: =H19-H11 -> 249885.394 | I21: =I19-I11 -> 409385.0986 | J21: 162937.2607
B23: Proposed DSM Rates | D23: =D19/D7 -> 0.004975902298 | E23: =E19/E7 -> 0.005858190558 | F23: 0.005045946496 | G23: 0.003161722569 | H23: =H19/H7 -> 0.002393608687 | I23: 0.005119529021 | J23: 0.02152148552
B25: Percentage Increase <Decrease> | C25: =C19/C11-1 -> 0.8627387686 | D25: =D19/D11-1 -> 0.9498109997 | E25: =E19/E11-1 -> 0.8267768868 | F25: =F19/F11-1 -> 0.8450578187 | G25: =G19/G11-1 -> 0.7403173746 | H25: =H19/H11-1 -> 0.3175219192 | I25: =I19/I11-1 -> 1.168021882 | J25: =J19/J11-1 -> 0.924570283
B27: Present Billed Revenue | C27: =SUM(D27:J27) -> 619206000 | D27: 275353000 | E27: 99093000 | F27: 146773000 | G27: 52386000 | H27: 22792000 | I27: 15300000 | J27: 7509000
B29: Proposed Billed Revenue | C29: =SUM(D29:J29) -> 632067348.7 | D29: =D21+D27 -> 281788846.5 | E29: =E21+E27 -> 100908026.9 | F29: 149726288.8 | G29: =G21+G27 -> 53220978.78 | H29: =H21+H27 -> 23041885.39 | I29: =I21+I27 -> 15709385.1 | J29: =J21+J27 -> 7671937.261
B31: Overall Billed Percentage Increase <Decrease> | C31: =C29/C27-1 -> 0.02077071072 | D31: =D29/D27-1 -> 0.02337307574 | E31: =E29/E27-1 -> 0.01831639839 | F31: =F29/F27-1 -> 0.02012147176 | G31: =G29/G27-1 -> 0.01593896812 | H31: =H29/H27-1 -> 0.01096373262 | I31: 0.02675719599 | J31: 0.02169892937
D33: =D23-D9 -> 0.002423910183 | E33: =E23-E9 -> 0.002651345431 | F33: 0.002311101851 | G33: 0.001344972007 | H33: =H23-H9 -> 0.0005768581252 | I33: 0.00275814648 | J33: 0.01033899678
B34: Present DSM Revenue as a Percentage of Billed Revenue | C34: =C11/C27 -> 0.0240753186
B36: Percentage DSM Decrease | C36: =C21/C11 -> 0.8627387686
C38: Present | D38: Proposed | E38: Change
B39: Gross DSM Revenue | C39: =C11 -> 14907581.73 | D39: =C19 -> 27768930.43 | E39: =D39-C39 -> 12861348.7
B40: Revenue Conversion Factor | C40: ='Rev Conv Factor'!E22 -> 0.956069 | D40: ='Rev Conv Factor'!E22 -> 0.956069
B42: Net DSM Revenue | C42: =C39*C40 -> 14252676.75 | D42: =D39*D40 -> 26549013.55 | E42: =D42-C42 -> 12296336.79
B45: Average Monthly Bill @ 945 kWh's - Increase <Decrease>
C47: Present | D47: Change | E47: Proposed
B48: Basic Charge | C48: 9 | D48: 0 | E48: =C48+D48 -> 9
B49: First 800 kWh's | C49: 0.09096 | D49: =ROUND($D$23,5)-ROUND($D$9,5) -> 0.00243 | E49: =C49+D49 -> 0.09339
B50: 801 - 1500 kWh's | C50: 0.10682 | D50: =ROUND($D$23,5)-ROUND($D$9,5) -> 0.00243 | E50: =C50+D50 -> 0.10925
B51: Over 1500 kWh's | C51: 0.12635 | D51: =ROUND($D$23,5)-ROUND($D$9,5) -> 0.00243 | E51: 0.12878
C53: =C48+ROUND((800*C49),2)+ROUND((145*C50),2) -> 97.26 | D53: =D48+ROUND((800*D49),2)+ROUND((145*D50),2) -> 2.29 | E53: =E48+ROUND((800*E49),2)+ROUND((145*E50),2) -> 99.55
E55: =D53/C53 -> 0.02354513675

Sheet DSM Balance
C1: 2024 | D1: 2024 | E1: 2024 | F1: 2024 | G1: 2024 | H1: 2024 | I1: 2024 | J1: 2024 | K1: 2024 | L1: 2025 | M1: 2025 | N1: 2025 | O1: 2025 | P1: 2025 | Q1: 2025 | R1: 2025 | S1: 2025 | T1: 2025 | U1: 2025 | V1: 2025 | W1: 2025 | X1: 2026 | Y1: 2026 | Z1: 2026 | AA1: 2026 | AB1: 2026 | AC1: 2026 | AD1: 2026
C2: End April | D2: End May | E2: End June | F2: End July | G2: End August | H2: End September | I2: End October | J2: End November | K2: End December | L2: End January | M2: End February | N2: End March | O2: End April | P2: End May | Q2: End June | R2: End July | S2: End August | T2: End September | U2: End October | V2: End November | W2: End December | X2: End January | Y2: End February | Z2: End March | AA2: End April | AB2: End May | AC2: End June | AD2: End July
A3: Expected elec tariff rider revenue | C3: =-'Revenue By Month'!D43 -> -1032993.966 | D3: =-'Revenue By Month'!E43 -> -1048699.953 | E3: =-'Revenue By Month'!F43 -> -1089742.19 | F3: =-'Revenue By Month'!G43 -> -1214358.868 | G3: =-'Revenue By Month'!H43 -> -2271875.465 | H3: =-'Revenue By Month'!I43 -> -1892066.955 | I3: =-'Revenue By Month'!J43 -> -2003292.843 | J3: =-'Revenue By Month'!K43 -> -2319050.819 | K3: =-'Revenue By Month'!L43 -> -2654831.087 | L3: =-'Revenue By Month'!M43 -> -2753597.251 | M3: =-'Revenue By Month'!N43 -> -2247616.151 | N3: =-'Revenue By Month'!O43 -> -2220932.09 | O3: =-'Revenue By Month'!P43 -> -1997141.85 | P3: =-'Revenue By Month'!Q43 -> -1940526.829 | Q3: =-'Revenue By Month'!R43 -> -1999698.071 | R3: =-'Revenue By Month'!S43 -> -2248384.135 | S3: =-'Revenue By Month'!T43 -> -2278195.439 | T3: =-'Revenue By Month'!U43 -> -1903078.242 | U3: =-'Revenue By Month'!V43 -> -2012693.155 | V3: =-'Revenue By Month'!W43 -> -2305803.173 | W3: =-'Revenue By Month'!X43 -> -2660347.75 | X3: =-'Revenue By Month'!Y43 -> -2767664.196 | Y3: =-'Revenue By Month'!Z43 -> -2263507.308 | Z3: =-'Revenue By Month'!AA43 -> -2236310.031 | AA3: =-'Revenue By Month'!AB43 -> -2007388.29 | AB3: =-'Revenue By Month'!AC43 -> -1947455.531 | AC3: =-'Revenue By Month'!AD43 -> -2006051.633 | AD3: =-'Revenue By Month'!AE43 -> -2255143.448
A4: Expected DSM expenditures (from "Expense Budget" tab) | C4: ='Expense Budget'!H61 -> 1204925.361 | D4: ='Expense Budget'!I61 -> 1877314.609 | E4: ='Expense Budget'!J61 -> 1274653.354 | F4: ='Expense Budget'!K61 -> 1284619.415 | G4: ='Expense Budget'!L61 -> 1536876.738 | H4: ='Expense Budget'!M61 -> 1465404.26 | I4: ='Expense Budget'!N61 -> 1923700.984 | J4: ='Expense Budget'!O61 -> 1844333.09 | K4: ='Expense Budget'!P61 -> 3652115.038 | L4: ='Expense Budget'!E62 -> 2270474.043 | M4: ='Expense Budget'!F62 -> 1736065.129 | N4: ='Expense Budget'!G62 -> 1247437.236 | O4: ='Expense Budget'!H62 -> 1187985.397 | P4: ='Expense Budget'!I62 -> 1850921.57 | Q4: ='Expense Budget'!J62 -> 1256733.089 | R4: ='Expense Budget'!K62 -> 1266559.038 | S4: ='Expense Budget'!L62 -> 1515269.891 | T4: ='Expense Budget'!M62 -> 1444802.241 | U4: ='Expense Budget'!N62 -> 1896655.802 | V4: ='Expense Budget'!O62 -> 1818403.736 | W4: ='Expense Budget'!P62 -> 3600770.2 | X4: =L4 -> 2270474.043 | Y4: =M4 -> 1736065.129 | Z4: 1247437.236 | AA4: 1187985.397 | AB4: 1850921.57 | AC4: 1256733.089 | AD4: 1266559.038
A5: Net change in balance | C5: =C3+C4 -> 171931.3947 | D5: =D3+D4 -> 828614.6561 | E5: =E3+E4 -> 184911.1639 | F5: 70260.547 | G5: -734998.727 | H5: -426662.6945 | I5: -79591.85932 | J5: -474717.7291 | K5: 997283.9513 | L5: -483123.2081 | M5: -511551.0226 | N5: -973494.8545 | O5: -809156.4532 | P5: -89605.25898 | Q5: -742964.9824 | R5: -981825.0973 | S5: =S3+S4 -> -762925.5472 | T5: -458276.0014 | U5: -116037.3539 | V5: -487399.437 | W5: 940422.4499 | X5: -497190.1524 | Y5: =Y3+Y4 -> -527442.179 | Z5: -988872.7957 | AA5: -819402.8937 | AB5: -96533.96129 | AC5: -749318.544 | AD5: -988584.4104
A6: Accounting Adjustment
A7: Elec Tariff rider balance | B7: 9606251 | C7: =C5+C6+B7 -> 9778182.395 | D7: =D5+D6+C7 -> 10606797.05 | E7: =E5+E6+D7 -> 10791708.21 | F7: =F5+F6+E7 -> 10861968.76 | G7: =G5+G6+F7 -> 10126970.03 | H7: 9700307.34 | I7: 9620715.481 | J7: 9145997.752 | K7: 10143281.7 | L7: 9660158.495 | M7: 9148607.472 | N7: 8175112.618 | O7: 7365956.165 | P7: 7276350.906 | Q7: 6533385.923 | R7: =Q7+R5+R6 -> 5551560.826 | S7: 4788635.279 | T7: 4330359.277 | U7: 4214321.924 | V7: 3726922.487 | W7: 4667344.936 | X7: 4170154.784 | Y7: =X7+Y5+Y6 -> 3642712.605 | Z7: =Y7+Z5+Z6 -> 2653839.809 | AA7: 1834436.916 | AB7: 1737902.954 | AC7: 988584.4104 | AD7: 2.793967724e-09
A13: End of July Balance | B13: =F7 -> 10861968.76 | C13: Overfunded "Rebate"
A14: Aug 2024 - July 2025 Expenditure Budget | B14: =SUM(G4:R4) -> 21238605.61
A15: Aug 2024 - July 2025 Forecasted Revenue | B15: =SUM(G3:R3) -> -26549013.55
B16: =SUM(C6:R6) -> 0
A17: Total Projected DSM Balance July 2025 | B17: =B13+B14+B16+B15 -> 5551560.826 | C17: Overfunded
A18: Aug 2025 - July 2026 Expenditure Budget | B18: =SUM(S4:AD4) -> 21092077.37
A19: Aug 2025 - July 2026 Forecasted Revenue | B19: =SUM(S3:AD3) -> -26643638.2
B20: =SUM(C10:R10) -> 0
A21: Total Projected DSM Balance July 2026 | B21: =B17+B18+B20+B19 -> 0 | C21: Overfunded
B23: Present | C23: Proposed
A24: Gross Annual Revenue Recovered | B24: ='WA Electric - Sched 91'!C11 -> 14907581.73 | C24: ='WA Electric - Sched 91'!C19 -> 27768930.43 | D24: =C24-B24 -> 12861348.7
A25: Revenue Conversion Factor | B25: ='Rev Conv Factor'!E22 -> 0.956069 | C25: ='Rev Conv Factor'!E22 -> 0.956069
A27: Net Annual Revenue to be Recovered | B27: =B24*B25 -> 14252676.75 | C27: =C24*C25 -> 26549013.55 | D27: =C27-B27 -> 12296336.79
A31: August 2024 - July 2025
A32: Annual DSM Expense | B32: =SUM(G4:R4) -> 21238605.61
A33: Annual DSM Revenue | B33: =SUM(G3:R3) -> -26549013.55
B34: =B32+B33 -> -5310407.936

Sheet Expense Budget
A1: 2024 - 2025 BCP
A2: Programs | B2: MWh Savings | C2: Estimated Electric Budget
A3: Low-Income Programs
A4: Low-Income Program | B4: 1706 | C4: 5068644
A5: Deferred Maintenance | B5: - | C5: 700000
A6: Named Communities Investment Fund | B6: 1149 | C6: 4000000
A7: Low-Income Programs Total | B7: 2855 | C7: 9768644
A8: Residential Programs
A9: Prescriptive | B9: 2321 | C9: 911176
A10: MultiFamily (New Offerings) | B10: 507 | C10: 405391
A11: Midstream | B11: 528 | C11: 211247
A12: On-Bill Repayment | B12: 515 | C12: 412000
A13: Always-On | B13: 3752 | C13: 0
A14: Home Energy Audit | B14: 1234 | C14: 987571
A15: Residential Total | B15: 8857 | C15: 2927385
A16: Commercial/Industrial Programs
A17: Interior Prescriptive Lighting | B17: 13147 | C17: 3301095
A18: Exterior Prescriptive Lighting | B18: 5275 | C18: 1400420
A19: Direct Install Lighting | B19: 12456 | C19: 6228000
A20: Pay for Performance | B20: 11 | C20: 8490
A21: Site-Specific | B21: 15173 | C21: 4076800
A22: Contractor Incentive Program | B22: 0 | C22: 151733
A23: Clean Buildings Accelerator | B23: 1000 | C23: 800000
A24: Prescriptive Shell | B24: 397 | C24: 368213
A25: Green Motors | B25: 17 | C25: 3063
A26: Variable Frequency Drives | B26: 24 | C26: 8640
A27: Compressed Air | B27: 107 | C27: 25728
A28: Grocer | B28: 1 | C28: 4000
A29: Appliances | B29: 116 | C29: 30629
A30: Midstream | B30: 1079 | C30: 844987
A31: Active Energy Management | B31: 2859 | C31: 0
A32: Commercial/Industrial Total | B32: 51662 | C32: 17251797
A33: Regional Efficiency Programs
A34: NEEA Electric (WA Portion) | B34: 15739 | C34: 3306993
A35: NEEA Natural Gas (WA Portion) | B35: 0 | C35: 0
A36: Regional Efficiency Programs Total | B36: 15739 | C36: 3306993
A37: Portfolio Support
A38: Third-Party Non-Incentive Payments | B38: - | C38: 3731990
A39: Labor | B39: - | C39: 4591419
A40: EM&V | B40: - | C40: 548088
A41: Memberships | B41: - | C41: 102180
A42: Outreach | B42: - | C42: 272482
A43: Marketing | B43: - | C43: 1170490
A44: Training/Travel | B44: - | C44: 13624
A45: Regulatory | B45: - | C45: 6812
A46: Studies and Research | B46: - | C46: 136242
A47: Software | B47: - | C47: 313354
A48: Conservation Potential Assessment | B48: - | C48: 54496
A49: General Implementation | B49: - | C49: 490724
A50: Pilot Programs | B50: - | C50: 2000000
A51: Portfolio Support Total | B51: - | C51: 13431901
A52: Totals Included in Cost Effectiveness | B52: 63374 | C52: 38481214
A53: Portfolio Totals | B53: 79113 | C53: 46686720
A54: Estimated EM&V Percentages | C54: 0.0142
E55: Historical annual spend by month (%)
E56: 0.1076458238 | F56: 0.08230887352 | G56: 0.05914245495 | H56: 0.05632377389 | I56: 0.08775435144 | J56: 0.0595831822 | K56: 0.06004904189 | L56: 0.07184071369 | M56: 0.06849976015 | N56: 0.08992266472 | O56: 0.08621264296 | P56: 0.1707167168 | Q56: =SUM(E56:P56)-1 -> 0
A58: Budgeted Spend by Month (2024 - 2025)
E59: January | F59: February | G59: March | H59: April | I59: May | J59: June | K59: July | L59: August | M59: September | N59: October | O59: November | P59: December
A60: Anticipated Spend (91% of Budget) | C60: =C53*0.91 -> 42484915.2
A61: 2024 Total | C61: 21392837.83 | E61: =$C$61*E56 -> 2302849.651 | F61: 1760820.383 | G61: 1265224.948 | H61: 1204925.361 | I61: 1877314.609 | J61: 1274653.354 | K61: 1284619.415 | L61: 1536876.738 | M61: 1465404.26 | N61: 1923700.984 | O61: 1844333.09 | P61: 3652115.038 | Q61: =SUM(E61:P61)-C61 -> 0
A62: 2025 Total | C62: 21092077.37 | E62: =$C$62*E56 -> 2270474.043 | F62: =$C$62*F56 -> 1736065.129 | G62: 1247437.236 | H62: 1187985.397 | I62: 1850921.57 | J62: 1256733.089 | K62: 1266559.038 | L62: 1515269.891 | M62: 1444802.241 | N62: 1896655.802 | O62: 1818403.736 | P62: 3600770.2 | Q62: =SUM(E62:P62)-C62 -> 0
A63: Check | C63: =C60-C61-C62 -> 0

Sheet Revenue By Month
A4: Forecasted Usage | D4: 2024-04-30 | E4: =EOMONTH(D4,1) -> 2024-05-31 | F4: 2024-06-30 | G4: 2024-07-31 | H4: 2024-08-31 | I4: 2024-09-30 | J4: 2024-10-31 | K4: 2024-11-30 | L4: 2024-12-31 | M4: 2025-01-31 | N4: 2025-02-28 | O4: 2025-03-31 | P4: =EOMONTH(O4,1) -> 2025-04-30 | Q4: 2025-05-31 | R4: 2025-06-30 | S4: 2025-07-31 | T4: 2025-08-31 | U4: 2025-09-30 | V4: 2025-10-31 | W4: 2025-11-30 | X4: 2025-12-31 | Y4: 2026-01-31 | Z4: 2026-02-28 | AA4: 2026-03-31 | AB4: 2026-04-30 | AC4: 2026-05-31 | AD4: 2026-06-30 | AE4: 2026-07-31
B5: Residential Schedule 001 | D5: ='Billing Determinants'!C20 -> 190974480 | E5: ='Billing Determinants'!D20 -> 176113564 | F5: ='Billing Determinants'!E20 -> 176459747.1 | G5: ='Billing Determinants'!F20 -> 204494293.8 | H5: ='Billing Determinants'!G20 -> 206259283.6 | I5: ='Billing Determinants'!H20 -> 159643327 | J5: ='Billing Determinants'!I20 -> 178363982.4 | K5: ='Billing Determinants'!J20 -> 242351482 | L5: ='Billing Determinants'!K20 -> 307050289 | M5: ='Billing Determinants'!L20 -> 317280238.3 | N5: ='Billing Determinants'!M20 -> 250037504.8 | O5: ='Billing Determinants'!N20 -> 235738741.9 | P5: ='Billing Determinants'!O20 -> 203081803 | Q5: ='Billing Determinants'!P20 -> 179305893 | R5: ='Billing Determinants'!Q20 -> 174831177.4 | S5: ='Billing Determinants'!R20 -> 201206856.7 | T5: ='Billing Determinants'!S20 -> 210594571.3 | U5: ='Billing Determinants'!T20 -> 166271024.4 | V5: ='Billing Determinants'!U20 -> 182564364.4 | W5: ='Billing Determinants'!V20 -> 239376768.1 | X5: ='Billing Determinants'!W20 -> 308701003.1 | Y5: ='Billing Determinants'!X20 -> 322620935.2 | Z5: ='Billing Determinants'!Y20 -> 253550219.5 | AA5: ='Billing Determinants'!Z20 -> 240183342.1 | AB5: ='Billing Determinants'!AA20 -> 206814403 | AC5: ='Billing Determinants'!AB20 -> 182580161 | AD5: ='Billing Determinants'!AC20 -> 177592148.5 | AE5: ='Billing Determinants'!AD20 -> 204190821.4
B6: General Svc Schedule 011/012 | D6: ='Billing Determinants'!C21 -> 49752395.36 | E6: ='Billing Determinants'!D21 -> 50121076.67 | F6: ='Billing Determinants'!E21 -> 50821852.56 | G6: ='Billing Determinants'!F21 -> 59192814.41 | H6: ='Billing Determinants'!G21 -> 57839530.33 | I6: ='Billing Determinants'!H21 -> 50817696.39 | J6: ='Billing Determinants'!I21 -> 52829851.05 | K6: ='Billing Determinants'!J21 -> 60164500.73 | L6: ='Billing Determinants'!K21 -> 67365329.13 | M6: ='Billing Determinants'!L21 -> 69264093.65 | N6: ='Billing Determinants'!M21 -> 57606327.72 | O6: ='Billing Determinants'!N21 -> 57240439.92 | P6: ='Billing Determinants'!O21 -> 51756317.27 | Q6: ='Billing Determinants'!P21 -> 49751343.82 | R6: ='Billing Determinants'!Q21 -> 50968687.62 | S6: ='Billing Determinants'!R21 -> 58964118.69 | T6: ='Billing Determinants'!S21 -> 58060911.5 | U6: ='Billing Determinants'!T21 -> 50816205.62 | V6: ='Billing Determinants'!U21 -> 53238993.17 | W6: ='Billing Determinants'!V21 -> 61119629.82 | X6: ='Billing Determinants'!W21 -> 68215626.82 | Y6: ='Billing Determinants'!X21 -> 70111304.39 | Z6: ='Billing Determinants'!Y21 -> 57958442.44 | AA6: ='Billing Determinants'!Z21 -> 57925206.5 | AB6: ='Billing Determinants'!AA21 -> 52165555.53 | AC6: ='Billing Determinants'!AB21 -> 50133378.49 | AD6: ='Billing Determinants'!AC21 -> 51541057.8 | AE6: ='Billing Determinants'!AD21 -> 59651209.09
B7: Large Gen Svc Schedule 021/022 | D7: ='Billing Determinants'!C22 -> 91843610.47 | E7: ='Billing Determinants'!D22 -> 101455145.6 | F7: ='Billing Determinants'!E22 -> 108657764.5 | G7: ='Billing Determinants'!F22 -> 119754266.1 | H7: ='Billing Determinants'!G22 -> 111278453.6 | I7: ='Billing Determinants'!H22 -> 98739094.6 | J7: ='Billing Determinants'!I22 -> 111508701.3 | K7: ='Billing Determinants'!J22 -> 115516427 | L7: ='Billing Determinants'!K22 -> 111510703.8 | M7: ='Billing Determinants'!L22 -> 114306368.9 | N7: ='Billing Determinants'!M22 -> 96799842.41 | O7: ='Billing Determinants'!N22 -> 100289871.1 | P7: ='Billing Determinants'!O22 -> 94296727.36 | Q7: ='Billing Determinants'!P22 -> 100016788.3 | R7: ='Billing Determinants'!Q22 -> 106639413.6 | S7: ='Billing Determinants'!R22 -> 116968063.3 | T7: ='Billing Determinants'!S22 -> 109025418.6 | U7: ='Billing Determinants'!T22 -> 96493822.2 | V7: ='Billing Determinants'!U22 -> 109252445.7 | W7: ='Billing Determinants'!V22 -> 114364922.3 | X7: ='Billing Determinants'!W22 -> 110202623.1 | Y7: ='Billing Determinants'!X22 -> 113159189.2 | Z7: ='Billing Determinants'!Y22 -> 95161227.3 | AA7: ='Billing Determinants'!Z22 -> 98643696.49 | AB7: ='Billing Determinants'!AA22 -> 92773165.12 | AC7: ='Billing Determinants'!AB22 -> 97859899.59 | AD7: ='Billing Determinants'!AC22 -> 104734604.6 | AE7: ='Billing Determinants'!AD22 -> 115313014
B8: Extra Large Gen Schedule 25 | D8: ='Billing Determinants'!C23 -> 47825712 | E8: ='Billing Determinants'!D23 -> 51462423 | F8: ='Billing Determinants'!E23 -> 52844203 | G8: ='Billing Determinants'!F23 -> 52609038 | H8: ='Billing Determinants'!G23 -> 59236945 | I8: ='Billing Determinants'!H23 -> 49822212 | J8: ='Billing Determinants'!I23 -> 51363419 | K8: ='Billing Determinants'!J23 -> 49248530 | L8: ='Billing Determinants'!K23 -> 49427123 | M8: ='Billing Determinants'!L23 -> 55614734 | N8: ='Billing Determinants'!M23 -> 47598641 | O8: ='Billing Determinants'!N23 -> 53469196 | P8: ='Billing Determinants'!O23 -> 48593642 | Q8: ='Billing Determinants'!P23 -> 51505608 | R8: ='Billing Determinants'!Q23 -> 52323263 | S8: ='Billing Determinants'!R23 -> 52611678 | T8: ='Billing Determinants'!S23 -> 57808452 | U8: ='Billing Determinants'!T23 -> 50092151 | V8: ='Billing Determinants'!U23 -> 50742389 | W8: ='Billing Determinants'!V23 -> 48860881 | X8: ='Billing Determinants'!W23 -> 50249792 | Y8: ='Billing Determinants'!X23 -> 54082816 | Z8: ='Billing Determinants'!Y23 -> 48080079 | AA8: ='Billing Determinants'!Z23 -> 52706000 | AB8: ='Billing Determinants'!AA23 -> 48652401 | AC8: ='Billing Determinants'!AB23 -> 51329654 | AD8: ='Billing Determinants'!AC23 -> 51829582 | AE8: ='Billing Determinants'!AD23 -> 52681491
B9: Extra Large Gen Schedule 25I | D9: ='Billing Determinants'!C24 -> 36822962 | E9: ='Billing Determinants'!D24 -> 38444830 | F9: ='Billing Determinants'!E24 -> 38253213 | G9: ='Billing Determinants'!F24 -> 33280210 | H9: ='Billing Determinants'!G24 -> 36585435 | I9: ='Billing Determinants'!H24 -> 37109668 | J9: ='Billing Determinants'!I24 -> 34770564 | K9: ='Billing Determinants'!J24 -> 35823113 | L9: ='Billing Determinants'!K24 -> 36584911 | M9: ='Billing Determinants'!L24 -> 37391600 | N9: ='Billing Determinants'!M24 -> 35111801 | O9: ='Billing Determinants'!N24 -> 36043336 | P9: ='Billing Determinants'!O24 -> 36841235 | Q9: ='Billing Determinants'!P24 -> 35372228 | R9: ='Billing Determinants'!Q24 -> 35675190 | S9: ='Billing Determinants'!R24 -> 35874371 | T9: ='Billing Determinants'!S24 -> 36467467 | U9: ='Billing Determinants'!T24 -> 35575817 | V9: ='Billing Determinants'!U24 -> 35681264 | W9: ='Billing Determinants'!V24 -> 36370128 | X9: ='Billing Determinants'!W24 -> 35624529 | Y9: ='Billing Determinants'!X24 -> 35686729 | Z9: ='Billing Determinants'!Y24 -> 35713922 | AA9: ='Billing Determinants'!Z24 -> 35996684 | AB9: ='Billing Determinants'!AA24 -> 35704864 | AC9: ='Billing Determinants'!AB24 -> 35572111 | AD9: ='Billing Determinants'!AC24 -> 36025965 | AE9: ='Billing Determinants'!AD24 -> 35721817
B10: Pumping Schedule 31/32 | D10: ='Billing Determinants'!C25 -> 5935825.357 | E10: ='Billing Determinants'!D25 -> 13111416.41 | F10: ='Billing Determinants'!E25 -> 20733956.51 | G10: ='Billing Determinants'!F25 -> 25410501.28 | H10: ='Billing Determinants'!G25 -> 28523535.66 | I10: ='Billing Determinants'!H25 -> 22331575.3 | J10: ='Billing Determinants'!I25 -> 12097274.58 | K10: ='Billing Determinants'!J25 -> 2827877.128 | L10: ='Billing Determinants'!K25 -> 3789741.954 | M10: ='Billing Determinants'!L25 -> 4931291.715 | N10: ='Billing Determinants'!M25 -> 3646896.829 | O10: ='Billing Determinants'!N25 -> 4740668.638 | P10: ='Billing Determinants'!O25 -> 5851133.973 | Q10: ='Billing Determinants'!P25 -> 12768759.71 | R10: ='Billing Determinants'!Q25 -> 20688145.23 | S10: ='Billing Determinants'!R25 -> 26230712.4 | T10: ='Billing Determinants'!S25 -> 28575600.96 | U10: ='Billing Determinants'!T25 -> 21043593.05 | V10: ='Billing Determinants'!U25 -> 11694673.39 | W10: ='Billing Determinants'!V25 -> 3098492.534 | X10: ='Billing Determinants'!W25 -> 3635586.47 | Y10: ='Billing Determinants'!X25 -> 4691168.934 | Z10: ='Billing Determinants'!Y25 -> 4117271.968 | AA10: ='Billing Determinants'!Z25 -> 4965164.385 | AB10: ='Billing Determinants'!AA25 -> 5915233.054 | AC10: ='Billing Determinants'!AB25 -> 12802467.6 | AD10: ='Billing Determinants'!AC25 -> 20740880.78 | AE10: ='Billing Determinants'!AD25 -> 25669603.03
B11: Street and Area Lights | D11: ='Billing Determinants'!C26 -> 1302550.621 | E11: ='Billing Determinants'!D26 -> 1337105.589 | F11: ='Billing Determinants'!E26 -> 1331504.853 | G11: ='Billing Determinants'!F26 -> 1333836.024 | H11: ='Billing Determinants'!G26 -> 1334110.299 | I11: ='Billing Determinants'!H26 -> 1302325.501 | J11: ='Billing Determinants'!I26 -> 1306182.789 | K11: ='Billing Determinants'!J26 -> 1320266.038 | L11: ='Billing Determinants'!K26 -> 1319835.589 | M11: ='Billing Determinants'!L26 -> 1312052.567 | N11: ='Billing Determinants'!M26 -> 1282781.94 | O11: ='Billing Determinants'!N26 -> 1346978.878 | P11: ='Billing Determinants'!O26 -> 1282521.069 | Q11: ='Billing Determinants'!P26 -> 1322804.276 | R11: ='Billing Determinants'!Q26 -> 1311334.146 | S11: ='Billing Determinants'!R26 -> 1318291.522 | T11: ='Billing Determinants'!S26 -> 1317500.169 | U11: ='Billing Determinants'!T26 -> 1269268.48 | V11: ='Billing Determinants'!U26 -> 1295238.796 | W11: ='Billing Determinants'!V26 -> 1305931.234 | X11: ='Billing Determinants'!W26 -> 1304157.767 | Y11: ='Billing Determinants'!X26 -> 1271052.787 | Z11: ='Billing Determinants'!Y26 -> 1281690.866 | AA11: ='Billing Determinants'!Z26 -> 1330206.771 | AB11: ='Billing Determinants'!AA26 -> 1265826.852 | AC11: ='Billing Determinants'!AB26 -> 1299825.232 | AD11: ='Billing Determinants'!AC26 -> 1293536.921 | AE11: ='Billing Determinants'!AD26 -> 1298088.877
A12: Total Forecasted Usage | D12: =SUM(D5:D11) -> 424457535.9 | E12: =SUM(E5:E11) -> 432045561.3 | F12: 449102241.5 | G12: 496074959.6 | H12: 501057293.5 | I12: 419765898.8 | J12: 442239975.1 | K12: 507252195.9 | L12: 577047933.4 | M12: 600100379.2 | N12: 492083795.7 | O12: 488869232.4 | P12: =SUM(P5:P11) -> 441703379.6 | Q12: 430043425.2 | R12: 442437211.1 | S12: 493174091.7 | T12: =SUM(T5:T11) -> 501849921.5 | U12: 421561881.8 | V12: 444469368.5 | W12: 504496753 | X12: 577933318.2 | Y12: 601623195.5 | Z12: 495862853.1 | AA12: 491750300.3 | AB12: 443291448.6 | AC12: 431577496.9 | AD12: 443757775.6 | AE12: 494526044.4
D13: =D12-'Billing Determinants'!C27 -> 0 | E13: =E12-'Billing Determinants'!D27 -> 0 | F13: =F12-'Billing Determinants'!E27 -> 0 | G13: =G12-'Billing Determinants'!F27 -> 0 | H13: =H12-'Billing Determinants'!G27 -> 0 | I13: =I12-'Billing Determinants'!H27 -> 0 | J13: =J12-'Billing Determinants'!I27 -> 0 | K13: =K12-'Billing Determinants'!J27 -> 0 | L13: =L12-'Billing Determinants'!K27 -> 0 | M13: =M12-'Billing Determinants'!L27 -> 0 | N13: =N12-'Billing Determinants'!M27 -> 0 | O13: =O12-'Billing Determinants'!N27 -> 0 | P13: =P12-'Billing Determinants'!O27 -> 0 | Q13: =Q12-'Billing Determinants'!P27 -> 0 | R13: =R12-'Billing Determinants'!Q27 -> 0 | S13: =S12-'Billing Determinants'!R27 -> 0 | T13: =T12-'Billing Determinants'!S27 -> 0 | U13: =U12-'Billing Determinants'!T27 -> 0 | V13: =V12-'Billing Determinants'!U27 -> 0 | W13: =W12-'Billing Determinants'!V27 -> 0 | X13: =X12-'Billing Determinants'!W27 -> 0 | Y13: =Y12-'Billing Determinants'!X27 -> 0 | Z13: =Z12-'Billing Determinants'!Y27 -> 0 | AA13: =AA12-'Billing Determinants'!Z27 -> 0 | AB13: =AB12-'Billing Determinants'!AA27 -> 0 | AC13: =AC12-'Billing Determinants'!AB27 -> 0 | AD13: =AD12-'Billing Determinants'!AC27 -> 0 | AE13: =AE12-'Billing Determinants'!AD27 -> 0
A15: DSM Rates
B16: Residential Schedule 001 | D16: 0.002551992116 | E16: 0.002551992116 | F16: 0.002551992116 | G16: 0.002551992116 | H16: ='WA Electric - Sched 91'!$D$23 -> 0.004975902298 | I16: ='WA Electric - Sched 91'!$D$23 -> 0.004975902298 | J16: ='WA Electric - Sched 91'!$D$23 -> 0.004975902298 | K16: ='WA Electric - Sched 91'!$D$23 -> 0.004975902298 | L16: ='WA Electric - Sched 91'!$D$23 -> 0.004975902298 | M16: ='WA Electric - Sched 91'!$D$23 -> 0.004975902298 | N16: ='WA Electric - Sched 91'!$D$23 -> 0.004975902298 | O16: ='WA Electric - Sched 91'!$D$23 -> 0.004975902298 | P16: ='WA Electric - Sched 91'!$D$23 -> 0.004975902298 | Q16: ='WA Electric - Sched 91'!$D$23 -> 0.004975902298 | R16: ='WA Electric - Sched 91'!$D$23 -> 0.004975902298 | S16: ='WA Electric - Sched 91'!$D$23 -> 0.004975902298 | T16: ='WA Electric - Sched 91'!$D$23 -> 0.004975902298 | U16: ='WA Electric - Sched 91'!$D$23 -> 0.004975902298 | V16: ='WA Electric - Sched 91'!$D$23 -> 0.004975902298 | W16: ='WA Electric - Sched 91'!$D$23 -> 0.004975902298 | X16: ='WA Electric - Sched 91'!$D$23 -> 0.004975902298 | Y16: ='WA Electric - Sched 91'!$D$23 -> 0.004975902298 | Z16: ='WA Electric - Sched 91'!$D$23 -> 0.004975902298 | AA16: ='WA Electric - Sched 91'!$D$23 -> 0.004975902298 | AB16: ='WA Electric - Sched 91'!$D$23 -> 0.004975902298 | AC16: ='WA Electric - Sched 91'!$D$23 -> 0.004975902298 | AD16: ='WA Electric - Sched 91'!$D$23 -> 0.004975902298 | AE16: ='WA Electric - Sched 91'!$D$23 -> 0.004975902298
B17: General Svc Schedule 011/012 | D17: 0.003206845127 | E17: 0.003206845127 | F17: 0.003206845127 | G17: 0.003206845127 | H17: ='WA Electric - Sched 91'!$E$23 -> 0.005858190558 | I17: ='WA Electric - Sched 91'!$E$23 -> 0.005858190558 | J17: ='WA Electric - Sched 91'!$E$23 -> 0.005858190558 | K17: ='WA Electric - Sched 91'!$E$23 -> 0.005858190558 | L17: ='WA Electric - Sched 91'!$E$23 -> 0.005858190558 | M17: ='WA Electric - Sched 91'!$E$23 -> 0.005858190558 | N17: ='WA Electric - Sched 91'!$E$23 -> 0.005858190558 | O17: ='WA Electric - Sched 91'!$E$23 -> 0.005858190558 | P17: ='WA Electric - Sched 91'!$E$23 -> 0.005858190558 | Q17: ='WA Electric - Sched 91'!$E$23 -> 0.005858190558 | R17: ='WA Electric - Sched 91'!$E$23 -> 0.005858190558 | S17: ='WA Electric - Sched 91'!$E$23 -> 0.005858190558 | T17: ='WA Electric - Sched 91'!$E$23 -> 0.005858190558 | U17: ='WA Electric - Sched 91'!$E$23 -> 0.005858190558 | V17: ='WA Electric - Sched 91'!$E$23 -> 0.005858190558 | W17: ='WA Electric - Sched 91'!$E$23 -> 0.005858190558 | X17: ='WA Electric - Sched 91'!$E$23 -> 0.005858190558 | Y17: ='WA Electric - Sched 91'!$E$23 -> 0.005858190558 | Z17: ='WA Electric - Sched 91'!$E$23 -> 0.005858190558 | AA17: ='WA Electric - Sched 91'!$E$23 -> 0.005858190558 | AB17: ='WA Electric - Sched 91'!$E$23 -> 0.005858190558 | AC17: ='WA Electric - Sched 91'!$E$23 -> 0.005858190558 | AD17: ='WA Electric - Sched 91'!$E$23 -> 0.005858190558 | AE17: ='WA Electric - Sched 91'!$E$23 -> 0.005858190558
B18: Large Gen Svc Schedule 021/022 | D18: 0.002734844645 | E18: 0.002734844645 | F18: 0.002734844645 | G18: 0.002734844645 | H18: ='WA Electric - Sched 91'!$F$23 -> 0.005045946496 | I18: ='WA Electric - Sched 91'!$F$23 -> 0.005045946496 | J18: ='WA Electric - Sched 91'!$F$23 -> 0.005045946496 | K18: ='WA Electric - Sched 91'!$F$23 -> 0.005045946496 | L18: ='WA Electric - Sched 91'!$F$23 -> 0.005045946496 | M18: ='WA Electric - Sched 91'!$F$23 -> 0.005045946496 | N18: ='WA Electric - Sched 91'!$F$23 -> 0.005045946496 | O18: ='WA Electric - Sched 91'!$F$23 -> 0.005045946496 | P18: ='WA Electric - Sched 91'!$F$23 -> 0.005045946496 | Q18: ='WA Electric - Sched 91'!$F$23 -> 0.005045946496 | R18: ='WA Electric - Sched 91'!$F$23 -> 0.005045946496 | S18: ='WA Electric - Sched 91'!$F$23 -> 0.005045946496 | T18: ='WA Electric - Sched 91'!$F$23 -> 0.005045946496 | U18: ='WA Electric - Sched 91'!$F$23 -> 0.005045946496 | V18: ='WA Electric - Sched 91'!$F$23 -> 0.005045946496 | W18: ='WA Electric - Sched 91'!$F$23 -> 0.005045946496 | X18: ='WA Electric - Sched 91'!$F$23 -> 0.005045946496 | Y18: ='WA Electric - Sched 91'!$F$23 -> 0.005045946496 | Z18: ='WA Electric - Sched 91'!$F$23 -> 0.005045946496 | AA18: ='WA Electric - Sched 91'!$F$23 -> 0.005045946496 | AB18: ='WA Electric - Sched 91'!$F$23 -> 0.005045946496 | AC18: ='WA Electric - Sched 91'!$F$23 -> 0.005045946496 | AD18: ='WA Electric - Sched 91'!$F$23 -> 0.005045946496 | AE18: ='WA Electric - Sched 91'!$F$23 -> 0.005045946496
B19: Extra Large Gen Schedule 25 | D19: 0.001816750562 | E19: 0.001816750562 | F19: 0.001816750562 | G19: 0.001816750562 | H19: ='WA Electric - Sched 91'!$G$23 -> 0.003161722569 | I19: ='WA Electric - Sched 91'!$G$23 -> 0.003161722569 | J19: ='WA Electric - Sched 91'!$G$23 -> 0.003161722569 | K19: ='WA Electric - Sched 91'!$G$23 -> 0.003161722569 | L19: ='WA Electric - Sched 91'!$G$23 -> 0.003161722569 | M19: ='WA Electric - Sched 91'!$G$23 -> 0.003161722569 | N19: ='WA Electric - Sched 91'!$G$23 -> 0.003161722569 | O19: ='WA Electric - Sched 91'!$G$23 -> 0.003161722569 | P19: ='WA Electric - Sched 91'!$G$23 -> 0.003161722569 | Q19: ='WA Electric - Sched 91'!$G$23 -> 0.003161722569 | R19: ='WA Electric - Sched 91'!$G$23 -> 0.003161722569 | S19: ='WA Electric - Sched 91'!$G$23 -> 0.003161722569 | T19: ='WA Electric - Sched 91'!$G$23 -> 0.003161722569 | U19: ='WA Electric - Sched 91'!$G$23 -> 0.003161722569 | V19: ='WA Electric - Sched 91'!$G$23 -> 0.003161722569 | W19: ='WA Electric - Sched 91'!$G$23 -> 0.003161722569 | X19: ='WA Electric - Sched 91'!$G$23 -> 0.003161722569 | Y19: ='WA Electric - Sched 91'!$G$23 -> 0.003161722569 | Z19: ='WA Electric - Sched 91'!$G$23 -> 0.003161722569 | AA19: ='WA Electric - Sched 91'!$G$23 -> 0.003161722569 | AB19: ='WA Electric - Sched 91'!$G$23 -> 0.003161722569 | AC19: ='WA Electric - Sched 91'!$G$23 -> 0.003161722569 | AD19: ='WA Electric - Sched 91'!$G$23 -> 0.003161722569 | AE19: ='WA Electric - Sched 91'!$G$23 -> 0.003161722569
B20: Extra Large Gen Schedule 25I | D20: 0.001816750562 | E20: 0.001816750562 | F20: 0.001816750562 | G20: 0.001816750562 | H20: ='WA Electric - Sched 91'!$H$23 -> 0.002393608687 | I20: ='WA Electric - Sched 91'!$H$23 -> 0.002393608687 | J20: ='WA Electric - Sched 91'!$H$23 -> 0.002393608687 | K20: ='WA Electric - Sched 91'!$H$23 -> 0.002393608687 | L20: ='WA Electric - Sched 91'!$H$23 -> 0.002393608687 | M20: ='WA Electric - Sched 91'!$H$23 -> 0.002393608687 | N20: ='WA Electric - Sched 91'!$H$23 -> 0.002393608687 | O20: ='WA Electric - Sched 91'!$H$23 -> 0.002393608687 | P20: ='WA Electric - Sched 91'!$H$23 -> 0.002393608687 | Q20: ='WA Electric - Sched 91'!$H$23 -> 0.002393608687 | R20: ='WA Electric - Sched 91'!$H$23 -> 0.002393608687 | S20: ='WA Electric - Sched 91'!$H$23 -> 0.002393608687 | T20: ='WA Electric - Sched 91'!$H$23 -> 0.002393608687 | U20: ='WA Electric - Sched 91'!$H$23 -> 0.002393608687 | V20: ='WA Electric - Sched 91'!$H$23 -> 0.002393608687 | W20: ='WA Electric - Sched 91'!$H$23 -> 0.002393608687 | X20: ='WA Electric - Sched 91'!$H$23 -> 0.002393608687 | Y20: ='WA Electric - Sched 91'!$H$23 -> 0.002393608687 | Z20: ='WA Electric - Sched 91'!$H$23 -> 0.002393608687 | AA20: ='WA Electric - Sched 91'!$H$23 -> 0.002393608687 | AB20: ='WA Electric - Sched 91'!$H$23 -> 0.002393608687 | AC20: ='WA Electric - Sched 91'!$H$23 -> 0.002393608687 | AD20: ='WA Electric - Sched 91'!$H$23 -> 0.002393608687 | AE20: ='WA Electric - Sched 91'!$H$23 -> 0.002393608687
B21: Pumping Schedule 31/32 | D21: 0.002361382541 | E21: 0.002361382541 | F21: 0.002361382541 | G21: 0.002361382541 | H21: ='WA Electric - Sched 91'!$I$23 -> 0.005119529021 | I21: ='WA Electric - Sched 91'!$I$23 -> 0.005119529021 | J21: ='WA Electric - Sched 91'!$I$23 -> 0.005119529021 | K21: ='WA Electric - Sched 91'!$I$23 -> 0.005119529021 | L21: ='WA Electric - Sched 91'!$I$23 -> 0.005119529021 | M21: ='WA Electric - Sched 91'!$I$23 -> 0.005119529021 | N21: ='WA Electric - Sched 91'!$I$23 -> 0.005119529021 | O21: ='WA Electric - Sched 91'!$I$23 -> 0.005119529021 | P21: ='WA Electric - Sched 91'!$I$23 -> 0.005119529021 | Q21: ='WA Electric - Sched 91'!$I$23 -> 0.005119529021 | R21: ='WA Electric - Sched 91'!$I$23 -> 0.005119529021 | S21: ='WA Electric - Sched 91'!$I$23 -> 0.005119529021 | T21: ='WA Electric - Sched 91'!$I$23 -> 0.005119529021 | U21: ='WA Electric - Sched 91'!$I$23 -> 0.005119529021 | V21: ='WA Electric - Sched 91'!$I$23 -> 0.005119529021 | W21: ='WA Electric - Sched 91'!$I$23 -> 0.005119529021 | X21: ='WA Electric - Sched 91'!$I$23 -> 0.005119529021 | Y21: ='WA Electric - Sched 91'!$I$23 -> 0.005119529021 | Z21: ='WA Electric - Sched 91'!$I$23 -> 0.005119529021 | AA21: ='WA Electric - Sched 91'!$I$23 -> 0.005119529021 | AB21: ='WA Electric - Sched 91'!$I$23 -> 0.005119529021 | AC21: ='WA Electric - Sched 91'!$I$23 -> 0.005119529021 | AD21: ='WA Electric - Sched 91'!$I$23 -> 0.005119529021 | AE21: ='WA Electric - Sched 91'!$I$23 -> 0.005119529021
B22: Street and Area Lights | D22: 0.01118248874 | E22: 0.01118248874 | F22: 0.01118248874 | G22: 0.01118248874 | H22: ='WA Electric - Sched 91'!$J$23 -> 0.02152148552 | I22: ='WA Electric - Sched 91'!$J$23 -> 0.02152148552 | J22: ='WA Electric - Sched 91'!$J$23 -> 0.02152148552 | K22: ='WA Electric - Sched 91'!$J$23 -> 0.02152148552 | L22: ='WA Electric - Sched 91'!$J$23 -> 0.02152148552 | M22: ='WA Electric - Sched 91'!$J$23 -> 0.02152148552 | N22: ='WA Electric - Sched 91'!$J$23 -> 0.02152148552 | O22: ='WA Electric - Sched 91'!$J$23 -> 0.02152148552 | P22: ='WA Electric - Sched 91'!$J$23 -> 0.02152148552 | Q22: ='WA Electric - Sched 91'!$J$23 -> 0.02152148552 | R22: ='WA Electric - Sched 91'!$J$23 -> 0.02152148552 | S22: ='WA Electric - Sched 91'!$J$23 -> 0.02152148552 | T22: ='WA Electric - Sched 91'!$J$23 -> 0.02152148552 | U22: ='WA Electric - Sched 91'!$J$23 -> 0.02152148552 | V22: ='WA Electric - Sched 91'!$J$23 -> 0.02152148552 | W22: ='WA Electric - Sched 91'!$J$23 -> 0.02152148552 | X22: ='WA Electric - Sched 91'!$J$23 -> 0.02152148552 | Y22: ='WA Electric - Sched 91'!$J$23 -> 0.02152148552 | Z22: ='WA Electric - Sched 91'!$J$23 -> 0.02152148552 | AA22: ='WA Electric - Sched 91'!$J$23 -> 0.02152148552 | AB22: ='WA Electric - Sched 91'!$J$23 -> 0.02152148552 | AC22: ='WA Electric - Sched 91'!$J$23 -> 0.02152148552 | AD22: ='WA Electric - Sched 91'!$J$23 -> 0.02152148552 | AE22: ='WA Electric - Sched 91'!$J$23 -> 0.02152148552
A25: Gross DSM Revenue | D25: =D4 -> 2024-04-30 | E25: =E4 -> 2024-05-31 | F25: 2024-06-30 | G25: 2024-07-31 | H25: 2024-08-31 | I25: 2024-09-30 | J25: 2024-10-31 | K25: 2024-11-30 | L25: 2024-12-31 | M25: 2025-01-31 | N25: 2025-02-28 | O25: 2025-03-31 | P25: 2025-04-30 | Q25: 2025-05-31 | R25: 2025-06-30 | S25: 2025-07-31 | T25: =T4 -> 2025-08-31 | U25: 2025-09-30 | V25: 2025-10-31 | W25: 2025-11-30 | X25: 2025-12-31 | Y25: 2026-01-31 | Z25: 2026-02-28 | AA25: 2026-03-31 | AB25: 2026-04-30 | AC25: 2026-05-31 | AD25: 2026-06-30 | AE25: 2026-07-31
B26: Residential Schedule 001 | D26: =D5*D16 -> 487365.3673 | E26: =E5*E16 -> 449440.4268 | F26: =F5*F16 -> 450323.8834 | G26: =G5*G16 -> 521867.8254 | H26: 1026326.043 | I26: 794369.5975 | J26: 887521.7498 | K26: 1205917.296 | L26: 1527852.239 | M26: 1578755.467 | N26: 1244162.195 | O26: 1173012.948 | P26: =P5*P16 -> 1010515.21 | Q26: 892208.6051 | R26: 869942.8576 | S26: =S5*S16 -> 1001185.661 | T26: =T5*T16 -> 1047898.011 | U26: 827348.3726 | V26: 908422.4404 | W26: 1191115.41 | X26: 1536066.031 | Y26: 1605330.253 | Z26: 1261641.12 | AA26: 1195128.844 | AB26: 1029088.263 | AC26: 908501.0426 | AD26: 883681.1797 | AE26: 1016033.578
B27: General Svc Schedule 011/012 | D27: =D6*D17 -> 159548.2266 | E27: =E6*E17 -> 160730.5305 | F27: 162977.8102 | G27: 189822.1885 | H27: 338834.9904 | I27: 297699.7492 | J27: 309487.3346 | K27: 352455.1101 | L27: 394638.9351 | M27: 405762.2595 | N27: 337468.8451 | O27: 335325.4047 | P27: =P6*P17 -> 303198.3691 | Q27: 291452.8526 | R27: 298584.2846 | S27: 345423.0434 | T27: =T6*T17 -> 340131.8835 | U27: 297691.0159 | V27: 311884.1671 | W27: 358050.4383 | X27: 399620.1409 | Y27: 410725.3814 | Z27: 339531.6003 | AA27: 339336.8978 | AB27: 305595.7649 | AC27: 293690.8845 | AD27: 301937.3382 | AE27: 349448.1498
B28: Large Gen Svc Schedule 021/022 | D28: =D7*D18 -> 251178.0063 | E28: =E7*E18 -> 277464.0618 | F28: 297162.1053 | G28: 327509.3135 | H28: 561505.1231 | I28: 498232.1884 | J28: 562666.9408 | K28: 582889.7102 | L28: 562677.0449 | M28: 576783.8216 | N28: 488446.8256 | O28: 506057.3235 | P28: =P7*P18 -> 475816.241 | Q28: 504679.3626 | R28: 538096.7755 | S28: 590214.5893 | T28: =T7*T18 -> 550136.4291 | U28: 486902.664 | V28: 551281.9956 | W28: 577079.2789 | X28: 556076.5399 | Y28: 570995.2143 | Z28: 480178.4615 | AA28: 497750.8146 | AB28: 468128.4274 | AC28: 493795.8174 | AD28: 528485.2109 | AE28: 581863.2988
B29: Extra Large Gen Schedule 25 | D29: =D8*D19 -> 86887.38916 | E29: =E8*E19 -> 93494.38592 | F29: 96004.73551 | G29: 95577.49936 | H29: 187290.7859 | I29: 157524.0121 | J29: 162396.8811 | K29: 155710.1888 | L29: 156274.8503 | M29: 175838.3596 | N29: 150493.6975 | O29: 169054.7637 | P29: =P8*P19 -> 153639.6146 | Q29: 162846.4432 | R29: 165431.6415 | S29: 166343.5297 | T29: =T8*T19 -> 182774.2873 | U29: 158377.4843 | V29: 160433.3565 | W29: 154484.5502 | X29: 158875.9014 | Y29: 170994.8599 | Z29: 152015.8709 | AA29: 166641.7497 | AB29: 153825.3943 | AC29: 162290.1255 | AD29: 163870.7591 | AE29: 166564.259
B30: Extra Large Gen Schedule 25I | D30: =D9*D20 -> 66898.13691 | E30: 69844.66652 | F30: 69496.54622 | G30: 60461.84023 | H30: 87571.21505 | I30: 88826.02371 | J30: 83227.12406 | K30: 85746.51449 | L30: 87569.9608 | M30: 89500.85859 | N30: 84043.9119 | O30: 86273.64217 | P30: 88183.50015 | Q30: 84667.27223 | R30: 85392.44471 | S30: 85869.20608 | T30: 87288.84582 | U30: 85154.58463 | V30: 85406.98349 | W30: 87055.85434 | X30: 85271.1821 | Y30: 85420.06456 | Z30: 85485.15396 | AA30: 86161.97554 | AB30: 85463.47265 | AC30: 85145.71392 | AD30: 86232.06279 | AE30: 85504.0515
B31: Pumping Schedule 31/32 | D31: =D10*D21 -> 14016.75437 | E31: =E10*E21 -> 30961.06979 | F31: 48960.80291 | G31: 60003.91409 | H31: 146027.0686 | I31: 114327.1478 | J31: 61932.34831 | K31: 14477.39902 | L31: 19401.69392 | M31: 25245.89104 | N31: 18670.39415 | O31: 24269.99067 | P31: =P10*P21 -> 29955.05018 | Q31: 65370.03589 | R31: 105913.5599 | S31: 134288.8934 | T31: =T10*T21 -> 146293.6184 | U31: 107733.2853 | V31: 59871.21983 | W31: 15862.82245 | X31: 18612.49044 | Y31: 24016.5755 | Z31: 21078.49333 | AA31: 25419.30316 | AB31: 30283.20728 | AC31: 65542.6044 | AD31: 106183.5411 | AE31: 131416.2777
B32: Street and Area Lights | D32: =D11*D22 -> 14565.75765 | E32: =E11*E22 -> 14952.16819 | F32: 14889.53802 | G32: 14915.60632 | H32: 28712.03547 | I32: 28027.97941 | J32: =J11*J22 -> 28110.99399 | K32: 28414.08642 | L32: 28404.82252 | M32: 28237.32032 | N32: 27607.37294 | O32: =O11*O22 -> 28988.98642 | P32: =P11*P22 -> 27601.75861 | Q32: 28468.71307 | R32: 28221.85883 | S32: 28371.5919 | T32: =T11*T22 -> 28354.56081 | U32: 27316.54322 | V32: 27875.46299 | W32: 28105.58015 | X32: 28067.4125 | Y32: 27354.94416 | Z32: 27583.89141 | AA32: 28628.02576 | AB32: 27242.47426 | AC32: 27974.1699 | AD32: 27838.83612 | AE32: 27936.80098
B33: Total | D33: =SUM(D26:D32) -> 1080459.638 | E33: =SUM(E26:E32) -> 1096887.309 | F33: 1139815.422 | G33: 1270158.187 | H33: 2376267.262 | I33: 1979006.698 | J33: 2095343.373 | K33: 2425610.305 | L33: 2776819.546 | M33: =SUM(M26:M32) -> 2880123.978 | N33: 2350893.242 | O33: 2322983.059 | P33: =SUM(P26:P32) -> 2088909.744 | Q33: 2029693.285 | R33: 2091583.423 | S33: 2351696.514 | T33: =SUM(T26:T32) -> 2382877.636 | U33: 1990523.95 | V33: 2105175.626 | W33: 2411753.935 | X33: 2782589.698 | Y33: 2894837.293 | Z33: 2367514.591 | AA33: 2339067.611 | AB33: 2099627.004 | AC33: 2036940.358 | AD33: 2098228.928 | AE33: 2358766.415 | AG33: =SUM(H33:S33)-'WA Electric - Sched 91'!D39 -> 0
A35: Net DSM Revenue | C35: ='Rev Conv Factor'!E22 -> 0.956069 | D35: =D4 -> 2024-04-30 | E35: =E4 -> 2024-05-31 | F35: 2024-06-30 | G35: 2024-07-31 | H35: 2024-08-31 | I35: 2024-09-30 | J35: 2024-10-31 | K35: 2024-11-30 | L35: 2024-12-31 | M35: 2025-01-31 | N35: 2025-02-28 | O35: 2025-03-31 | P35: 2025-04-30 | Q35: 2025-05-31 | R35: 2025-06-30 | S35: 2025-07-31 | T35: =T4 -> 2025-08-31 | U35: 2025-09-30 | V35: 2025-10-31 | W35: 2025-11-30 | X35: 2025-12-31 | Y35: 2026-01-31 | Z35: 2026-02-28 | AA35: 2026-03-31 | AB35: 2026-04-30 | AC35: 2026-05-31 | AD35: 2026-06-30 | AE35: 2026-07-31
B36: Residential Schedule 001 | D36: =D26*$C$35 -> 465954.9194 | E36: =E26*$C$35 -> 429696.0594 | F36: =F26*$C$35 -> 430540.7049 | G36: =G26*$C$35 -> 498941.65 | H36: =H26*$C$35 -> 981238.5137 | I36: 759472.1468 | J36: 848532.0318 | K36: 1152940.143 | L36: 1460732.162 | M36: 1509399.161 | N36: 1189504.906 | O36: 1121481.316 | P36: =P26*$C$35 -> 966122.2663 | Q36: 853012.9889 | R36: 831725.398 | S36: =S26*$C$35 -> 957202.5735 | T36: =T26*$C$35 -> 1001862.804 | U36: 791002.1312 | V36: 868514.5341 | W36: 1138788.519 | X36: 1468585.114 | Y36: 1534806.489 | Z36: 1206215.964 | AA36: 1142625.639 | AB36: 983879.3869 | AC36: 868589.6833 | AD36: 844860.1818 | AE36: 971398.2064
B37: General Svc Schedule 011/012 | D37: =D27*$C$35 -> 152539.1135 | E37: =E27*$C$35 -> 153669.4775 | F37: 155818.032 | G37: 181483.1099 | H37: 323949.6305 | I37: 284621.5015 | J37: 295891.2465 | K37: 336971.4047 | L37: 377302.052 | M37: 387936.7176 | N37: 322643.5013 | O37: 320594.2243 | P37: =P27*$C$35 -> 289878.5616 | Q37: 278649.0374 | R37: 285467.1783 | S37: 330248.2636 | T37: =T27*$C$35 -> 325189.5498 | U37: 284613.1519 | V37: 298182.7838 | W37: 342320.9245 | X37: 382064.4285 | Y37: 392681.8047 | Z37: 324615.6375 | AA37: 324429.4886 | AB37: 292170.6373 | AC37: 280788.7503 | AD37: 288672.929 | AE37: 334096.5432
B38: Large Gen Svc Schedule 021/022 | D38: =D28*$C$35 -> 240143.5053 | E38: =E28*$C$35 -> 265274.7881 | F38: 284107.4768 | G38: 313121.5019 | H38: 536837.6415 | I38: 476344.3501 | J38: 537948.4194 | K38: 557282.7824 | L38: 537958.0796 | M38: 551445.1315 | N38: 466988.8681 | O38: 483825.7192 | P38: =P28*$C$35 -> 454913.1577 | Q38: 482508.2936 | R38: 514457.6461 | S38: 564285.8722 | T38: =T28*$C$35 -> 525968.3857 | U38: 465512.5431 | V38: 527063.6262 | W38: 551727.6091 | X38: 531647.5414 | Y38: 545910.8236 | Z38: 459083.7415 | AA38: 475884.1236 | AB38: 447563.0775 | AC38: 472102.8734 | AD38: 505268.3271 | AE38: 556301.4622
B39: Extra Large Gen Schedule 25 | D39: =D29*$C$35 -> 83070.33927 | E39: =E29*$C$35 -> 89387.08405 | F39: 91787.15147 | G39: 91378.68424 | H39: 179062.9144 | I39: 150603.8247 | J39: 155262.6237 | K39: 148869.6845 | L39: 149409.5398 | M39: 168113.6047 | N39: 143882.3589 | O39: 161628.0189 | P39: =P29*$C$35 -> 146890.0727 | Q39: 155692.4361 | R39: 158164.0641 | S39: 159035.8921 | T39: =T29*$C$35 -> 174744.8301 | U39: 151419.8031 | V39: 153385.3587 | W39: 147697.8894 | X39: 151896.3242 | Y39: 163482.8847 | Z39: 145337.6617 | AA39: 159321.011 | AB39: 147067.6909 | AC39: 155160.558 | AD39: 156671.7528 | AE39: 159246.9246
B40: Extra Large Gen Schedule 25I | D40: 63959.23486 | E40: 66776.32047 | F40: 66443.49345 | G40: 57805.69112 | H40: 83724.124 | I40: 84923.80766 | J40: 79570.87327 | K40: 81979.58436 | L40: 83722.92485 | M40: 85568.99638 | N40: 80351.77881 | O40: 82483.5548 | P40: 84309.5108 | Q40: 80947.7543 | R40: 81641.06922 | S40: 82096.88599 | T40: 83454.15953 | U40: 81413.65857 | V40: 81654.9693 | W40: 83231.4036 | X40: 81525.1338 | Y40: 81667.4757 | Z40: 81729.70566 | AA40: 82376.79379 | AB40: 81708.97683 | AC40: 81405.17756 | AD40: 82443.80204 | AE40: 81747.77301
B41: Pumping Schedule 31/32 | D41: =D31*$C$35 -> 13400.98433 | E41: =E31*$C$35 -> 29600.91903 | F41: 46809.90588 | G41: 57367.88214 | H41: 139611.9534 | I41: 109304.6419 | J41: 59211.59832 | K41: 13841.39241 | L41: 18549.3581 | M41: 24136.8138 | N41: 17850.18507 | O41: 23203.78571 | P41: =P31*$C$35 -> 28639.09487 | Q41: 62498.26484 | R41: 101260.6713 | S41: 128389.448 | T41: =T31*$C$35 -> 139866.7935 | U41: 103000.4544 | V41: 57241.01727 | W41: 15165.95279 | X41: 17794.82513 | Y41: 22961.50332 | Z41: 20152.49404 | AA41: 24302.60776 | AB41: 28952.8357 | AC41: 62663.25225 | AD41: 101518.7919 | AE41: 125643.0292
B42: Street and Area Lights | D42: =D32*$C$35 -> 13925.86935 | E42: =E32*$C$35 -> 14295.30449 | F42: =F32*$C$35 -> 14235.42573 | G42: 14260.34882 | H42: 27450.68704 | I42: 26796.68224 | J42: 26876.04991 | K42: 27165.82719 | L42: 27156.97027 | M42: 26996.8266 | N42: 26394.55344 | O42: 27715.47126 | P42: =P32*$C$35 -> 26389.18575 | Q42: 27218.05404 | R42: 26982.04435 | S42: 27125.1995 | T42: =T32*$C$35 -> 27108.9166 | U42: 26116.50016 | V42: 26650.86603 | W42: 26870.8739 | X42: 26834.383 | Y42: 26153.21411 | Z42: 26372.10347 | AA42: 27370.36796 | AB42: 26045.68512 | AC42: 26745.23664 | AD42: 26615.84821 | AE42: 26709.50937
B43: Total | D43: =SUM(D36:D42) -> 1032993.966 | E43: =SUM(E36:E42) -> 1048699.953 | F43: 1089742.19 | G43: 1214358.868 | H43: 2271875.465 | I43: 1892066.955 | J43: 2003292.843 | K43: 2319050.819 | L43: 2654831.087 | M43: 2753597.251 | N43: 2247616.151 | O43: 2220932.09 | P43: =SUM(P36:P42) -> 1997141.85 | Q43: 1940526.829 | R43: 1999698.071 | S43: 2248384.135 | T43: =SUM(T36:T42) -> 2278195.439 | U43: 1903078.242 | V43: 2012693.155 | W43: 2305803.173 | X43: 2660347.75 | Y43: 2767664.196 | Z43: 2263507.308 | AA43: 2236310.031 | AB43: 2007388.29 | AC43: 1947455.531 | AD43: 2006051.633 | AE43: 2255143.448 | AG43: =SUM(H43:S43)-'WA Electric - Sched 91'!D42 -> 0

Sheet Billing Determinants
A4: Forecasted Loads
C7: 2024-04-30 | D7: =EOMONTH(C7,1) -> 2024-05-31 | E7: =EOMONTH(D7,1) -> 2024-06-30 | F7: 2024-07-31 | G7: 2024-08-31 | H7: 2024-09-30 | I7: 2024-10-31 | J7: 2024-11-30 | K7: 2024-12-31 | L7: 2025-01-31 | M7: 2025-02-28 | N7: 2025-03-31 | O7: 2025-04-30 | P7: 2025-05-31 | Q7: 2025-06-30 | R7: 2025-07-31 | S7: 2025-08-31 | T7: 2025-09-30 | U7: 2025-10-31 | V7: 2025-11-30 | W7: 2025-12-31 | X7: 2026-01-31 | Y7: 2026-02-28 | Z7: 2026-03-31 | AA7: 2026-04-30 | AB7: 2026-05-31 | AC7: 2026-06-30 | AD7: 2026-07-31
A8: WA001/002 | C8: =C34+C35 -> 190974480 | D8: =D34+D35 -> 176113564 | E8: =E34+E35 -> 176459747.1 | F8: 204494293.8 | G8: 206259283.6 | H8: 159643327 | I8: 178363982.4 | J8: 242351482 | K8: 307050289 | L8: 317280238.3 | M8: 250037504.8 | N8: 235738741.9 | O8: 203081803 | P8: 179305893 | Q8: 174831177.4 | R8: 201206856.7 | S8: 210594571.3 | T8: 166271024.4 | U8: 182564364.4 | V8: 239376768.1 | W8: 308701003.1 | X8: 322620935.2 | Y8: 253550219.5 | Z8: 240183342.1 | AA8: 206814403 | AB8: 182580161 | AC8: 177592148.5 | AD8: 204190821.4
A9: WA011/013 | C9: =C36+C38 -> 44553492.26 | D9: =D36+D38 -> 45367362.01 | E9: =E36+E38 -> 46657261.48 | F9: 54309748.2 | G9: 53185830.6 | H9: 46594626.38 | I9: 47939247.87 | J9: 53383522.31 | K9: 58546350.51 | L9: 60254274.37 | M9: 50640676.6 | N9: 50311897.7 | O9: 46259442.07 | P9: 44991997.03 | Q9: 46677213.06 | R9: 54037538.46 | S9: 53357005.96 | T9: 46545655.04 | U9: 48299347.74 | V9: 54140688.87 | W9: 59328027.83 | X9: 60957554.63 | Y9: 50863962.42 | Z9: 50816246.48 | AA9: 46518330.49 | AB9: 45316676.94 | AC9: 47056954.82 | AD9: 54533957.14
A10: WA012 | C10: =C37 -> 5198903.1 | D10: =D37 -> 4753714.655 | E10: =E37 -> 4164591.077 | F10: 4883066.215 | G10: 4653699.726 | H10: 4223070.006 | I10: 4890603.18 | J10: 6780978.417 | K10: 8818978.622 | L10: 9009819.281 | M10: 6965651.119 | N10: 6928542.224 | O10: 5496875.196 | P10: 4759346.798 | Q10: 4291474.56 | R10: 4926580.222 | S10: 4703905.543 | T10: 4270550.579 | U10: 4939645.433 | V10: 6978940.952 | W10: 8887598.989 | X10: 9153749.762 | Y10: 7094480.024 | Z10: 7108960.027 | AA10: 5647225.048 | AB10: 4816701.55 | AC10: 4484102.988 | AD10: 5117251.948
A11: WA021/023 | C11: =C39+C41 -> 89608566.88 | D11: =D39+D41 -> 99299272.05 | E11: =E39+E41 -> 106538977.6 | F11: 117273819.2 | G11: 108948158.5 | H11: 96680255.87 | I11: 109279898.8 | J11: 112804464.3 | K11: 108037155 | L11: 110761555.3 | M11: 93997176.04 | N11: 97581315.19 | O11: 92010286.84 | P11: 97927246.29 | Q11: 104558731 | R11: 114514607.4 | S11: 106679887.2 | T11: 94447442.97 | U11: 106981049.4 | V11: 111618304.1 | W11: 106781077.1 | X11: 109624633.4 | Y11: 92377840.48 | Z11: 95956273.49 | AA11: 90478877.05 | AB11: 95764619.26 | AC11: 102631957.8 | AD11: 112837258.2
A12: WA022 | C12: =C40 -> 2235043.588 | D12: =D40 -> 2155873.599 | E12: =E40 -> 2118786.898 | F12: 2480446.91 | G12: 2330295.125 | H12: 2058838.73 | I12: 2228802.58 | J12: 2711962.692 | K12: 3473548.787 | L12: 3544813.609 | M12: 2802666.364 | N12: 2708555.874 | O12: 2286440.53 | P12: 2089542.045 | Q12: 2080682.679 | R12: 2453455.911 | S12: 2345531.463 | T12: 2046379.236 | U12: 2271396.353 | V12: 2746618.179 | W12: 3421545.955 | X12: 3534555.779 | Y12: 2783386.828 | Z12: 2687422.997 | AA12: 2294288.065 | AB12: 2095280.333 | AC12: 2102646.746 | AD12: 2475755.823
A13: WA025 | C13: =C42 -> 47825712 | D13: =D42 -> 51462423 | E13: 52844203 | F13: 52609038 | G13: 59236945 | H13: 49822212 | I13: 51363419 | J13: 49248530 | K13: 49427123 | L13: 55614734 | M13: 47598641 | N13: 53469196 | O13: 48593642 | P13: 51505608 | Q13: 52323263 | R13: 52611678 | S13: 57808452 | T13: 50092151 | U13: 50742389 | V13: 48860881 | W13: 50249792 | X13: 54082816 | Y13: 48080079 | Z13: 52706000 | AA13: 48652401 | AB13: 51329654 | AC13: 51829582 | AD13: 52681491
A14: WA025I | C14: =C46 -> 36822962 | D14: =D46 -> 38444830 | E14: 38253213 | F14: 33280210 | G14: 36585435 | H14: 37109668 | I14: 34770564 | J14: 35823113 | K14: 36584911 | L14: 37391600 | M14: 35111801 | N14: 36043336 | O14: 36841235 | P14: 35372228 | Q14: 35675190 | R14: 35874371 | S14: 36467467 | T14: 35575817 | U14: 35681264 | V14: 36370128 | W14: 35624529 | X14: 35686729 | Y14: 35713922 | Z14: 35996684 | AA14: 35704864 | AB14: 35572111 | AC14: 36025965 | AD14: 35721817
A15: WA031 | C15: =C43 -> 5502618.689 | D15: 12395651.24 | E15: =E43 -> 19701055.94 | F15: 23673980.6 | G15: 26583414.79 | H15: 21256596.56 | I15: 11530327.64 | J15: 2476142.828 | K15: 3386382.463 | L15: 4447959.089 | M15: 3261283.362 | N15: 4359897.397 | O15: 5428370.672 | P15: 12126309.07 | Q15: 19713389.65 | R15: 24561593.94 | S15: 26669643.84 | T15: 20047432.62 | U15: 11162597.28 | V15: 2759565.958 | W15: 3247143.279 | X15: 4250113.41 | Y15: 3741364.802 | Z15: 4594475.311 | AA15: 5487156.968 | AB15: 12114704.12 | AC15: 19716146.08 | AD15: 23902470.5
A16: WA032 | C16: 433206.6684 | D16: 715765.1614 | E16: =E44 -> 1032900.571 | F16: 1736520.68 | G16: 1940120.87 | H16: 1074978.741 | I16: 566946.9413 | J16: 351734.2998 | K16: 403359.4914 | L16: 483332.6251 | M16: 385613.467 | N16: 380771.2404 | O16: 422763.3012 | P16: 642450.6395 | Q16: 974755.5847 | R16: 1669118.451 | S16: 1905957.126 | T16: 996160.4364 | U16: 532076.1104 | V16: 338926.5762 | W16: 388443.191 | X16: 441055.5235 | Y16: 375907.1658 | Z16: 370689.0743 | AA16: 428076.0854 | AB16: 687763.4722 | AC16: 1024734.694 | AD16: 1767132.536
A17: WA04X | C17: 1302550.621 | D17: 1337105.589 | E17: =E45 -> 1331504.853 | F17: 1333836.024 | G17: 1334110.299 | H17: 1302325.501 | I17: 1306182.789 | J17: 1320266.038 | K17: 1319835.589 | L17: 1312052.567 | M17: 1282781.94 | N17: 1346978.878 | O17: 1282521.069 | P17: 1322804.276 | Q17: 1311334.146 | R17: 1318291.522 | S17: 1317500.169 | T17: 1269268.48 | U17: 1295238.796 | V17: 1305931.234 | W17: 1304157.767 | X17: 1271052.787 | Y17: 1281690.866 | Z17: 1330206.771 | AA17: 1265826.852 | AB17: 1299825.232 | AC17: 1293536.921 | AD17: 1298088.877
C18: =SUM(C8:C17) -> 424457535.9 | D18: 432045561.3 | E18: 449102241.5 | F18: 496074959.6 | G18: 501057293.5 | H18: 419765898.8 | I18: 442239975.1 | J18: 507252195.9 | K18: 577047933.4 | L18: 600100379.2 | M18: 492083795.7 | N18: 488869232.4 | O18: 441703379.6 | P18: 430043425.2 | Q18: 442437211.1 | R18: 493174091.7 | S18: 501849921.5 | T18: 421561881.8 | U18: 444469368.5 | V18: 504496753 | W18: 577933318.2 | X18: 601623195.5 | Y18: 495862853.1 | Z18: 491750300.3 | AA18: 443291448.6 | AB18: 431577496.9 | AC18: 443757775.6 | AD18: 494526044.4
A20: WA001 | C20: =C8 -> 190974480 | D20: 176113564 | E20: 176459747.1 | F20: 204494293.8 | G20: 206259283.6 | H20: 159643327 | I20: 178363982.4 | J20: 242351482 | K20: 307050289 | L20: 317280238.3 | M20: 250037504.8 | N20: 235738741.9 | O20: 203081803 | P20: 179305893 | Q20: 174831177.4 | R20: 201206856.7 | S20: 210594571.3 | T20: 166271024.4 | U20: 182564364.4 | V20: 239376768.1 | W20: 308701003.1 | X20: 322620935.2 | Y20: 253550219.5 | Z20: 240183342.1 | AA20: 206814403 | AB20: 182580161 | AC20: 177592148.5 | AD20: 204190821.4 | AF20: =SUM(B20:K20) -> 1841710449 | AG20: =SUM(B20:R20) -> 3403192664
A21: WA011/12 | C21: =C9+C10 -> 49752395.36 | D21: 50121076.67 | E21: 50821852.56 | F21: 59192814.41 | G21: 57839530.33 | H21: 50817696.39 | I21: 52829851.05 | J21: 60164500.73 | K21: 67365329.13 | L21: 69264093.65 | M21: 57606327.72 | N21: 57240439.92 | O21: 51756317.27 | P21: 49751343.82 | Q21: 50968687.62 | R21: 58964118.69 | S21: 58060911.5 | T21: 50816205.62 | U21: 53238993.17 | V21: 61119629.82 | W21: 68215626.82 | X21: 70111304.39 | Y21: 57958442.44 | Z21: 57925206.5 | AA21: 52165555.53 | AB21: 50133378.49 | AC21: 51541057.8 | AD21: 59651209.09 | AF21: 498905046.6 | AG21: 894456375.3
A22: WA021/22 | C22: =C11+C12 -> 91843610.47 | D22: 101455145.6 | E22: 108657764.5 | F22: 119754266.1 | G22: 111278453.6 | H22: 98739094.6 | I22: 111508701.3 | J22: 115516427 | K22: 111510703.8 | L22: 114306368.9 | M22: 96799842.41 | N22: 100289871.1 | O22: 94296727.36 | P22: 100016788.3 | Q22: 106639413.6 | R22: 116968063.3 | S22: 109025418.6 | T22: 96493822.2 | U22: 109252445.7 | V22: 114364922.3 | W22: 110202623.1 | X22: 113159189.2 | Y22: 95161227.3 | Z22: 98643696.49 | AA22: 92773165.12 | AB22: 97859899.59 | AC22: 104734604.6 | AD22: 115313014 | AF22: 970264167.1 | AG22: 1699581242
A23: WA025 | C23: =C13 -> 47825712 | D23: 51462423 | E23: 52844203 | F23: 52609038 | G23: 59236945 | H23: 49822212 | I23: 51363419 | J23: 49248530 | K23: 49427123 | L23: 55614734 | M23: 47598641 | N23: 53469196 | O23: 48593642 | P23: 51505608 | Q23: 52323263 | R23: 52611678 | S23: 57808452 | T23: 50092151 | U23: 50742389 | V23: 48860881 | W23: 50249792 | X23: 54082816 | Y23: 48080079 | Z23: 52706000 | AA23: 48652401 | AB23: 51329654 | AC23: 51829582 | AD23: 52681491 | AF23: 463839605 | AG23: 825556367
A24: WA025I | C24: =C14 -> 36822962 | D24: =D14 -> 38444830 | E24: 38253213 | F24: 33280210 | G24: 36585435 | H24: 37109668 | I24: 34770564 | J24: 35823113 | K24: 36584911 | L24: 37391600 | M24: 35111801 | N24: 36043336 | O24: 36841235 | P24: 35372228 | Q24: 35675190 | R24: 35874371 | S24: 36467467 | T24: 35575817 | U24: 35681264 | V24: 36370128 | W24: 35624529 | X24: 35686729 | Y24: 35713922 | Z24: 35996684 | AA24: 35704864 | AB24: 35572111 | AC24: 36025965 | AD24: 35721817 | AF24: =SUM(B24:K24) -> 327674906 | AG24: =SUM(B24:R24) -> 579984667
A25: WA031/32 | C25: =C15+C16 -> 5935825.357 | D25: =D15+D16 -> 13111416.41 | E25: 20733956.51 | F25: 25410501.28 | G25: 28523535.66 | H25: 22331575.3 | I25: 12097274.58 | J25: 2827877.128 | K25: 3789741.954 | L25: 4931291.715 | M25: 3646896.829 | N25: 4740668.638 | O25: 5851133.973 | P25: 12768759.71 | Q25: 20688145.23 | R25: 26230712.4 | S25: =S15+S16 -> 28575600.96 | T25: 21043593.05 | U25: 11694673.39 | V25: 3098492.534 | W25: 3635586.47 | X25: 4691168.934 | Y25: 4117271.968 | Z25: 4965164.385 | AA25: 5915233.054 | AB25: 12802467.6 | AC25: 20740880.78 | AD25: 25669603.03 | AF25: 134761704.2 | AG25: 213619312.7
A26: WA04X | C26: =C17 -> 1302550.621 | D26: =D17 -> 1337105.589 | E26: 1331504.853 | F26: 1333836.024 | G26: 1334110.299 | H26: 1302325.501 | I26: 1306182.789 | J26: 1320266.038 | K26: 1319835.589 | L26: 1312052.567 | M26: 1282781.94 | N26: 1346978.878 | O26: 1282521.069 | P26: 1322804.276 | Q26: 1311334.146 | R26: 1318291.522 | S26: =S17 -> 1317500.169 | T26: 1269268.48 | U26: 1295238.796 | V26: 1305931.234 | W26: 1304157.767 | X26: 1271052.787 | Y26: 1281690.866 | Z26: 1330206.771 | AA26: 1265826.852 | AB26: 1299825.232 | AC26: 1293536.921 | AD26: 1298088.877 | AF26: 11887717.3 | AG26: 21064481.7
A27: Total | C27: =SUM(C20:C26) -> 424457535.9 | D27: =SUM(D20:D26) -> 432045561.3 | E27: =SUM(E20:E26) -> 449102241.5 | F27: 496074959.6 | G27: 501057293.5 | H27: 419765898.8 | I27: 442239975.1 | J27: 507252195.9 | K27: 577047933.4 | L27: 600100379.2 | M27: 492083795.7 | N27: 488869232.4 | O27: 441703379.6 | P27: 430043425.2 | Q27: 442437211.1 | R27: 493174091.7 | S27: 501849921.5 | T27: 421561881.8 | U27: 444469368.5 | V27: 504496753 | W27: 577933318.2 | X27: 601623195.5 | Y27: 495862853.1 | Z27: 491750300.3 | AA27: 443291448.6 | AB27: 431577496.9 | AC27: 443757775.6 | AD27: 494526044.4 | AF27: 4249043595 | AG27: 7637455110
C33: =SUM(C34:C46)-C18 -> 0 | D33: =SUM(D34:D46)-D18 -> 0 | E33: =SUM(E34:E46)-E18 -> 0 | F33: 0 | G33: 0 | H33: 0 | I33: 0 | J33: 0 | K33: 0 | L33: 0 | M33: 0 | N33: 0 | O33: 0 | P33: 0 | Q33: 0 | R33: 0 | S33: 0 | T33: 0 | U33: 0 | V33: 0 | W33: 0 | X33: 0 | Y33: 0 | Z33: 0 | AA33: 0 | AB33: 0 | AC33: 0 | AD33: 0
A34: WA_1 | C34: 190974480 | D34: 176113564 | E34: 176459747.1 | F34: 204494293.8 | G34: 206259283.6 | H34: 159643327 | I34: 178363982.4 | J34: 242351482 | K34: 307050289 | L34: 317280238.3 | M34: 250037504.8 | N34: 235738741.9 | O34: 203081803 | P34: 179305893 | Q34: 174831177.4 | R34: 201206856.7 | S34: 210594571.3 | T34: 166271024.4 | U34: 182564364.4 | V34: 239376768.1 | W34: 308701003.1 | X34: 322620935.2 | Y34: 253550219.5 | Z34: 240183342.1 | AA34: 206814403 | AB34: 182580161 | AC34: 177592148.5 | AD34: 204190821.4
A35: WA_2 | C35: 0 | D35: 0 | E35: 0 | F35: 0 | G35: 0 | H35: 0 | I35: 0 | J35: 0 | K35: 0 | L35: 0 | M35: 0 | N35: 0 | O35: 0 | P35: 0 | Q35: 0 | R35: 0 | S35: 0 | T35: 0 | U35: 0 | V35: 0 | W35: 0 | X35: 0 | Y35: 0 | Z35: 0 | AA35: 0 | AB35: 0 | AC35: 0 | AD35: 0
A36: WA_11 | C36: 44505030.74 | D36: 45319752.31 | E36: 46610336.54 | F36: 54261410.6 | G36: 53136040.03 | H36: 46541171.16 | I36: 47886683.04 | J36: 53332265.98 | K36: 58497747.13 | L36: 60205061.84 | M36: 50590770.64 | N36: 50261447.61 | O36: 46208921.19 | P36: 44941470.83 | Q36: 46626698.82 | R36: 53987155.32 | S36: 53306781.72 | T36: 46495560.21 | U36: 48249152.91 | V36: 54090408.01 | W36: 59277692.97 | X36: 60907202.65 | Y36: 50813625.98 | Z36: 50765941.04 | AA36: 46468057.37 | AB36: 45266415.54 | AC36: 47006684.78 | AD36: 54483664.44
A37: WA_12 | C37: 5198903.1 | D37: 4753714.655 | E37: 4164591.077 | F37: 4883066.215 | G37: 4653699.726 | H37: 4223070.006 | I37: 4890603.18 | J37: 6780978.417 | K37: 8818978.622 | L37: 9009819.281 | M37: 6965651.119 | N37: 6928542.224 | O37: 5496875.196 | P37: 4759346.798 | Q37: 4291474.56 | R37: 4926580.222 | S37: 4703905.543 | T37: 4270550.579 | U37: 4939645.433 | V37: 6978940.952 | W37: 8887598.989 | X37: 9153749.762 | Y37: 7094480.024 | Z37: 7108960.027 | AA37: 5647225.048 | AB37: 4816701.55 | AC37: 4484102.988 | AD37: 5117251.948
A38: WA_13 | C38: 48461.52239 | D38: 47609.69763 | E38: 46924.94358 | F38: 48337.59991 | G38: 49790.57545 | H38: 53455.22505 | I38: 52564.83169 | J38: 51256.33442 | K38: 48603.37486 | L38: 49212.53653 | M38: 49905.95408 | N38: 50450.08333 | O38: 50520.87971 | P38: 50526.19666 | Q38: 50514.23907 | R38: 50383.1428 | S38: 50224.23489 | T38: 50094.83368 | U38: 50194.82955 | V38: 50280.85678 | W38: 50334.86428 | X38: 50351.97925 | Y38: 50336.43198 | Z38: 50305.44111 | AA38: 50273.11158 | AB38: 50261.40166 | AC38: 50270.03765 | AD38: 50292.69365
A39: WA_21 | C39: 89428573.59 | D39: 99113820.38 | E39: 106352506.1 | F39: 117071370.1 | G39: 108747891.9 | H39: 96497166.43 | I39: 109097265.2 | J39: 112608199.6 | K39: 107840814.2 | L39: 110565483.5 | M39: 93803579.45 | N39: 97389724.53 | O39: 91818317.23 | P39: 97734975.77 | Q39: 104366294.9 | R39: 114322032.8 | S39: 106487171.4 | T39: 94254122.59 | U39: 106787954.5 | V39: 111425414.1 | W39: 106588324.9 | X39: 109431954.3 | Y39: 92185194.99 | Z39: 95763589.96 | AA39: 90286117.66 | AB39: 95571799 | AC39: 102439099.5 | AD39: 112644399.6
A40: WA_22 | C40: 2235043.588 | D40: 2155873.599 | E40: 2118786.898 | F40: 2480446.91 | G40: 2330295.125 | H40: 2058838.73 | I40: 2228802.58 | J40: 2711962.692 | K40: 3473548.787 | L40: 3544813.609 | M40: 2802666.364 | N40: 2708555.874 | O40: 2286440.53 | P40: 2089542.045 | Q40: 2080682.679 | R40: 2453455.911 | S40: 2345531.463 | T40: 2046379.236 | U40: 2271396.353 | V40: 2746618.179 | W40: 3421545.955 | X40: 3534555.779 | Y40: 2783386.828 | Z40: 2687422.997 | AA40: 2294288.065 | AB40: 2095280.333 | AC40: 2102646.746 | AD40: 2475755.823
A41: WA_23 | C41: 179993.2937 | D41: 185451.6693 | E41: 186471.462 | F41: 202449.1419 | G41: 200266.62 | H41: 183089.4376 | I41: 182633.5768 | J41: 196264.7341 | K41: 196340.7806 | L41: 196071.7763 | M41: 193596.5933 | N41: 191590.6664 | O41: 191969.6073 | P41: 192270.5192 | Q41: 192436.0633 | R41: 192574.5919 | S41: 192715.8051 | T41: 193320.3758 | U41: 193094.8132 | V41: 192889.9787 | W41: 192752.2386 | X41: 192679.1213 | Y41: 192645.4839 | Z41: 192683.5325 | AA41: 192759.3935 | AB41: 192820.2542 | AC41: 192858.3344 | AD41: 192858.5514
A42: WA_25 | C42: 47825712 | D42: 51462423 | E42: 52844203 | F42: 52609038 | G42: 59236945 | H42: 49822212 | I42: 51363419 | J42: 49248530 | K42: 49427123 | L42: 55614734 | M42: 47598641 | N42: 53469196 | O42: 48593642 | P42: 51505608 | Q42: 52323263 | R42: 52611678 | S42: 57808452 | T42: 50092151 | U42: 50742389 | V42: 48860881 | W42: 50249792 | X42: 54082816 | Y42: 48080079 | Z42: 52706000 | AA42: 48652401 | AB42: 51329654 | AC42: 51829582 | AD42: 52681491
A43: WA_31 | C43: 5502618.689 | D43: 12395651.24 | E43: 19701055.94 | F43: 23673980.6 | G43: 26583414.79 | H43: 21256596.56 | I43: 11530327.64 | J43: 2476142.828 | K43: 3386382.463 | L43: 4447959.089 | M43: 3261283.362 | N43: 4359897.397 | O43: 5428370.672 | P43: 12126309.07 | Q43: 19713389.65 | R43: 24561593.94 | S43: 26669643.84 | T43: 20047432.62 | U43: 11162597.28 | V43: 2759565.958 | W43: 3247143.279 | X43: 4250113.41 | Y43: 3741364.802 | Z43: 4594475.311 | AA43: 5487156.968 | AB43: 12114704.12 | AC43: 19716146.08 | AD43: 23902470.5
A44: WA_32 | C44: 433206.6684 | D44: 715765.1614 | E44: 1032900.571 | F44: 1736520.68 | G44: 1940120.87 | H44: 1074978.741 | I44: 566946.9413 | J44: 351734.2998 | K44: 403359.4914 | L44: 483332.6251 | M44: 385613.467 | N44: 380771.2404 | O44: 422763.3012 | P44: 642450.6395 | Q44: 974755.5847 | R44: 1669118.451 | S44: 1905957.126 | T44: 996160.4364 | U44: 532076.1104 | V44: 338926.5762 | W44: 388443.191 | X44: 441055.5235 | Y44: 375907.1658 | Z44: 370689.0743 | AA44: 428076.0854 | AB44: 687763.4722 | AC44: 1024734.694 | AD44: 1767132.536
A45: WA_4X | C45: 1302550.621 | D45: 1337105.589 | E45: 1331504.853 | F45: 1333836.024 | G45: 1334110.299 | H45: 1302325.501 | I45: 1306182.789 | J45: 1320266.038 | K45: 1319835.589 | L45: 1312052.567 | M45: 1282781.94 | N45: 1346978.878 | O45: 1282521.069 | P45: 1322804.276 | Q45: 1311334.146 | R45: 1318291.522 | S45: 1317500.169 | T45: 1269268.48 | U45: 1295238.796 | V45: 1305931.234 | W45: 1304157.767 | X45: 1271052.787 | Y45: 1281690.866 | Z45: 1330206.771 | AA45: 1265826.852 | AB45: 1299825.232 | AC45: 1293536.921 | AD45: 1298088.877
A46: WA_25I | C46: 36822962 | D46: 38444830 | E46: 38253213 | F46: 33280210 | G46: 36585435 | H46: 37109668 | I46: 34770564 | J46: 35823113 | K46: 36584911 | L46: 37391600 | M46: 35111801 | N46: 36043336 | O46: 36841235 | P46: 35372228 | Q46: 35675190 | R46: 35874371 | S46: 36467467 | T46: 35575817 | U46: 35681264 | V46: 36370128 | W46: 35624529 | X46: 35686729 | Y46: 35713922 | Z46: 35996684 | AA46: 35704864 | AB46: 35572111 | AC46: 36025965 | AD46: 35721817

Sheet Rev Conv Factor
A1: AVISTA UTILITIES
A2: Revenue Conversion Factor
A3: Washington - Electric System
A4: TWELVE MONTHS ENDED SEPTEMBER 30, 2021
A6: Line
A7: No. | C7: Description | E7: Factor
A9: 1 | C9: Revenues | E9: 1
C11: Expense:
A12: 2 | C12: Uncollectibles | E12: 0.003326
A14: 3 | C14: Commission Fees | E14: 0.002
A16: 4 | C16: Washington Excise Tax | E16: 0.038605
A18: 5 | C18: Franchise Fees | E18: 0
A20: 6 | C20: Total Expense | E20: =E12+E14+E16+E18 -> 0.043931
A22: 7 | C22: Net Operating Income Before FIT | E22: =E9-E20 -> 0.956069
A24: 8 | C24: Federal Income Tax @ 21% | E24: 0.200774
A26: 9 | C26: REVENUE CONVERSION FACTOR | E26: =E22-E24 -> 0.755295
A29: Source: UE-220053

Sheet Base Revenue
A1: AVISTA UTILITIES
A2: WASHINGTON ELECTRIC
A3: PROPOSED INCREASE BY SERVICE SCHEDULE
A4: 12 MONTHS ENDED SEPTEMBER, 2021
A5: (000s of Dollars)
A6: Source: UE-220053 Compliance Filing, Attachment A, Page 1, Rate Year 2 effective 12/21/2023
D8: Base Tariff
D9: Revenue
B10: Type of | C10: Schedule | D10: Under Proposed
A11: No. | B11: Service | C11: Number | D11: Rates
B12: (a) | C12: (b) | D12: (e)
A14: 1 | B14: Residential | C14: 1/2 | D14: 285802
A16: 2 | B16: General Service | C16: 11/12 | D16: 86753
A18: 3 | B18: Large General Service | C18: 21/22 | D18: 139487
A20: 4 | B20: Extra Large General Service | C20: 25 | D20: 42461
A22: 5 | B22: Extra Large General Service | C22: 25 | D22: 22430
A24: 6 | B24: Pumping Service | C24: 30/31/32 | D24: 16438
A26: 7 | B26: Street & Area Lights | C26: 41-48 | D26: 7337
A28: 8 | B28: Total | D28: =SUM(D14:D26) -> 600708
B40: reduce billed revenue for BPA ResEx (already accounted for in Schs 1 & 48)
D41: Billing
D42: Determinants
B43: Schedule 12 only | D43: ='[3]Rev Runs 12MESEPT2014'!P49+'[3]Rev Runs 12MESEPT2014'!P81+'[3]Rev Runs 12MESEPT2014'!P90 -> 57963673
B44: Schedule 22 only | D44: ='[3]Rev Runs 12MESEPT2014'!P51+'[3]Rev Runs 12MESEPT2014'!P83+'[3]Rev Runs 12MESEPT2014'!P92 -> 36956089
B45: Schedule 32 only | D45: ='[3]Rev Runs 12MESEPT2014'!P55+'[3]Rev Runs 12MESEPT2014'!P86+'[3]Rev Runs 12MESEPT2014'!P95 -> 8649684
B47: Total | D47: =SUM(D43:D46) -> 103569446
